bitfinex-derivatives/quotes_ETHF0:USTF0_20260303
["timestamp","ask_amount","ask_price","bid_price","bid_amount"]
[1772552215793,0.5469032,1960.5,1959.3,0.24936561]
[1772552216289,0.5469032,1960.5,1959.0,0.25567891]
[1772552216487,0.54253442,1960.3,1959.0,0.25567891]
[1772552216889,0.54253442,1960.3,1959.0,0.0063133]
[1772552217084,0.25509,1960.4,1959.0,0.0063133]
[1772552217085,0.54253442,1960.1,1959.0,0.0063133]
[1772552217290,0.25511,1960.2,1959.0,0.0063133]
[1772552217291,0.54253442,1959.9,1959.0,0.0063133]
[1772552217495,0.5469032,1960.5,1959.5,0.24913966]
[1772552218189,0.00436878,1960.5,1959.7,0.24913966]
[1772552218494,0.54253442,1961.5,1959.9,0.24913966]
[1772552219194,0.54253442,1961.4,1960.1,0.26052878]
[1772552219389,0.08877268,1961.8,1961.0,0.26052878]
[1772552219692,0.54253442,1962.0,1960.5,0.26052878]
[1772552219892,0.54253442,1961.8,1960.5,0.26052878]
[1772552220088,0.25492,1961.7,1959.8,0.25516]
[1772552220293,0.54253442,1961.6,1959.9,0.26052878]
[1772552220492,0.54253442,1961.5,1960.1,0.28124074]
[1772552220689,0.0054191,1961.6,1960.5,0.28124074]
[1772552220895,0.0054191,1961.6,1960.2,6.27592]
[1772552220896,0.0054191,1961.6,1960.7,0.28124074]
[1772552221097,0.54795352,1961.6,1960.7,0.28124074]
[1772552221292,0.54253442,1963.0,1961.9,0.27582164]
[1772552221598,0.54253442,1962.9,1961.4,0.27582164]
[1772552221794,0.54253442,1962.1,1960.8,0.27582164]
[1772552222398,0.54905479,1962.1,1960.8,0.28226115]
[1772552222598,0.54253442,1961.9,1960.8,0.00643951]
[1772552222799,0.54253442,1961.6,1960.8,0.00643951]
[1772552223296,0.54253442,1961.2,1960.2,0.28101172]
[1772552223598,0.54253442,1961.8,1960.6,0.28101172]
[1772552224195,0.54253442,1961.7,1960.6,0.28570372]
[1772552224493,0.54253442,1961.3,1959.7,0.28191969]
[1772552224693,0.25498,1961.2,1959.7,0.28191969]
[1772552224888,0.54253442,1961.1,1959.7,0.28191969]
[1772552225287,0.54253442,1961.1,1959.9,0.28191969]
[1772552225492,0.54253442,1961.1,1959.9,0.28734967]
[1772552225799,0.54253442,1961.1,1960.1,0.28191969]
[1772552226298,0.54253442,1961.4,1960.1,0.28191969]
[1772552226698,0.54253442,1961.4,1960.3,0.30316822]
[1772552227598,0.54253442,1961.3,1960.3,0.30316822]
[1772552228297,0.54253442,1961.1,1959.9,0.00542998]
[1772552228693,0.54253442,1960.8,1959.9,0.30902366]
[1772552228899,0.54253442,1961.2,1959.9,0.30902366]
[1772552229095,0.54253442,1960.8,1959.9,0.00542998]
[1772552229697,0.54253442,1961.1,1960.1,0.30359368]
[1772552230093,0.54253442,1961.1,1960.3,0.30359368]
[1772552230298,0.54253442,1961.7,1960.7,0.30359368]
[1772552230493,0.54253442,1961.7,1960.8,0.59847313]
[1772552230699,0.54253442,1961.5,1960.4,0.34343313]
[1772552231099,0.54253442,1961.4,1960.4,0.34343313]
[1772552231605,0.34646366,1961.3,1960.4,0.34343313]
[1772552231903,0.88899808,1961.3,1960.4,0.34343313]
[1772552232099,0.88899808,1961.2,1960.4,0.34343313]
[1772552232298,0.54253442,1961.2,1960.1,0.34343313]
[1772552232495,0.54253442,1961.0,1959.8,0.61777797]
[1772552232700,0.54253442,1961.0,1960.0,0.25514]
[1772552232900,0.54253442,1961.0,1960.0,0.36261797]
[1772552233096,0.34646366,1960.7,1959.9,0.00542998]
[1772552233303,0.54253442,1960.6,1959.4,0.36261797]
[1772552233499,0.54253442,1960.4,1958.9,0.61788797]
[1772552233705,0.54253442,1960.1,1958.9,0.61788797]
[1772552234204,0.54253442,1959.8,1958.6,0.36261797]
[1772552234398,0.54253442,1959.8,1958.6,0.36820248]
[1772552235205,0.54253442,1959.8,1958.8,0.36573924]
[1772552235401,0.54253442,1959.8,1958.7,0.25531]
[1772552235596,0.54253442,1959.7,1958.6,0.37132375]
[1772552235797,0.54253442,1959.5,1958.6,0.00558451]
[1772552236001,0.54253442,1958.9,1957.7,0.36573924]
[1772552236702,6.94124,1959.2,1957.7,0.36573924]
[1772552236703,0.54253442,1958.8,1957.7,0.36573924]
[1772552236901,0.54804298,1958.8,1957.7,0.00402035]
[1772552237304,0.54253442,1958.5,1957.7,0.00402035]
[1772552238204,0.55027127,1958.2,1957.7,0.00402035]
[1772552238402,0.55027127,1958.7,1957.7,0.37135981]
[1772552238705,0.55027127,1958.6,1957.7,0.37135981]
[1772552239004,0.55027127,1958.6,1957.7,0.00402035]
[1772552239211,0.57590871,1958.3,1957.7,0.00402035]
[1772552239509,0.58141727,1958.8,1957.9,0.55738871]
[1772552239900,0.57590871,1958.6,1957.7,0.00402035]
[1772552240102,0.57590871,1958.6,1957.7,0.56140906]
[1772552240605,0.00550856,1958.8,1957.7,0.56140906]
[1772552240804,0.00550856,1958.8,1957.7,7.10076906]
[1772552241103,0.00550856,1958.8,1958.0,0.55738871]
[1772552241307,0.58141727,1958.8,1958.0,0.55738871]
[1772552241505,0.57590871,1958.7,1958.0,0.55738871]
[1772552241702,0.57590871,1958.7,1957.7,0.00402035]
[1772552241905,0.57590871,1958.1,1957.1,0.55738871]
[1772552242408,0.57590871,1957.9,1957.1,0.55738871]
[1772552242605,0.57590871,1957.9,1956.8,6.688]
[1772552242903,0.34646366,1957.8,1956.8,0.56145316]
[1772552243106,0.57590871,1957.9,1956.8,0.56145316]
[1772552243609,0.57590871,1957.6,1956.8,0.00406445]
[1772552244003,0.57590871,1957.3,1956.8,0.00406445]
[1772552244208,0.57963239,1957.3,1956.8,0.00406445]
[1772552244509,0.57590871,1957.2,1956.8,0.00406445]
[1772552244907,0.92237237,1956.9,1955.9,0.55738871]
[1772552245110,0.57590871,1956.8,1955.9,0.55738871]
[1772552245806,0.57590871,1956.8,1955.9,0.56392251]
[1772552247303,0.57590871,1957.2,1956.0,0.55738871]
[1772552247909,0.57590871,1957.1,1956.0,0.55738871]
[1772552248212,0.57590871,1957.1,1956.2,0.55738871]
[1772552248412,0.00372368,1957.3,1956.4,0.55738871]
[1772552248809,0.57963239,1957.3,1956.3,0.25562]
[1772552249004,0.57963239,1957.3,1956.4,0.55738871]
[1772552249209,0.00372368,1957.3,1956.4,0.55738871]
[1772552250512,0.35018734,1957.3,1956.4,0.55738871]
[1772552250710,0.00372368,1957.3,1956.4,0.55738871]
[1772552250912,0.57590871,1958.0,1956.6,0.55738871]
[1772552251109,0.57590871,1957.6,1956.1,0.55738871]
[1772552251515,0.57590871,1957.2,1956.1,0.55738871]
[1772552252018,0.34646366,1957.0,1956.1,0.55738871]
[1772552252314,0.57590871,1957.0,1956.1,0.55738871]
[1772552252508,0.34646366,1956.8,1956.1,0.55738871]
[1772552253013,0.57590871,1957.0,1956.1,0.55738871]
[1772552253617,0.34646366,1956.8,1956.1,0.55738871]
[1772552254010,0.57590871,1957.0,1956.3,0.55738871]
[1772552254210,0.58165324,1957.2,1956.3,0.55738871]
[1772552254614,0.92237237,1956.7,1956.0,0.55738871]
[1772552254818,0.57590871,1957.1,1956.2,0.55738871]
[1772552255014,0.00574453,1957.2,1956.4,0.55738871]
[1772552255214,0.00574453,1957.2,1956.6,0.55738871]
[1772552255818,0.34646366,1957.0,1956.6,0.55738871]
[1772552256015,0.00574453,1957.2,1956.8,0.55585273]
[1772552256216,0.57590871,1957.7,1956.9,0.81139273]
[1772552256524,0.57590871,1958.4,1957.2,0.55738871]
[1772552256816,0.57590871,1958.4,1957.4,0.55738871]
[1772552257117,0.0061007,1958.4,1957.8,0.55738871]
[1772552257707,0.0061007,1958.4,1957.4,0.00579729]
[1772552257708,0.58200941,1958.4,1957.4,0.00579729]
[1772552259612,0.57590871,1958.2,1956.9,0.48749]
[1772552260120,0.57590871,1958.2,1956.7,0.25557]
[1772552260121,0.57590871,1957.9,1956.7,0.49328729]
[1772552260422,0.57590871,1958.3,1957.3,0.49414678]
[1772552260622,0.57590871,1958.3,1957.3,0.49988197]
[1772552261721,0.57590871,1958.3,1957.3,0.00573519]
[1772552262827,0.57590871,1958.3,1956.8,0.45280361]
[1772552263027,0.57590871,1958.2,1956.8,0.45280361]
[1772552263728,0.57590871,1958.0,1956.8,0.00576341]
[1772552264425,0.57590871,1957.8,1956.8,0.00576341]
[1772552265626,0.57590871,1957.8,1956.8,0.46056598]
[1772552265828,0.57590871,1957.8,1956.9,0.71034257]
[1772552266124,0.57590871,1957.8,1957.0,0.45480257]
[1772552266719,0.57590871,1957.8,1956.9,0.25554]
[1772552267226,0.57590871,1957.8,1956.9,0.70938578]
[1772552268019,0.57590871,1957.8,1957.0,0.45390375]
[1772552268328,0.57590871,1957.8,1957.1,0.25552]
[1772552268725,0.57590871,1957.8,1956.8,0.00576341]
[1772552269823,0.57590871,1957.8,1956.6,0.45960611]
[1772552270030,0.54228681,1957.7,1956.6,0.45960611]
[1772552270930,0.54228681,1957.7,1956.6,0.00461269]
[1772552273125,0.54228681,1957.5,1956.6,0.00461269]
[1772552273333,0.54228681,1957.5,1956.6,0.46666454]
[1772552273724,0.54228681,1958.3,1956.9,0.71759185]
[1772552273931,0.54228681,1958.1,1957.1,0.25552]
[1772552274132,0.54228681,1958.1,1957.2,0.46205185]
[1772552275128,0.54228681,1958.1,1957.1,0.25552]
[1772552275521,0.54228681,1958.1,1957.3,0.71593442]
[1772552275726,0.54838751,1958.4,1957.5,0.71591442]
[1772552275921,0.54838751,1958.4,1957.4,6.21272122]
[1772552276126,0.54838751,1958.4,1957.2,6.67316564]
[1772552276323,0.54838751,1958.4,1957.2,6.21272122]
[1772552276529,0.54838751,1958.4,1957.0,6.46824122]
[1772552276530,0.54228681,1958.2,1957.0,6.46824122]
[1772552276729,0.54228681,1958.0,1957.0,6.21272122]
[1772552276932,0.54228681,1958.0,1956.9,6.21272122]
[1772552277335,0.54228681,1958.0,1957.0,0.42489174]
[1772552277528,0.54228681,1958.0,1957.1,0.68041174]
[1772552277832,0.54228681,1958.0,1957.1,6.89313296]
[1772552278130,0.54228681,1958.0,1957.0,6.21272122]
[1772552278334,0.54228681,1958.0,1957.0,6.89314296]
[1772552279429,0.54228681,1958.0,1957.0,6.46825122]
[1772552279629,0.54228681,1958.0,1957.0,6.89551848]
[1772552280029,0.54228681,1958.0,1957.1,6.63998848]
[1772552280234,0.54228681,1958.0,1957.1,0.42726726]
[1772552280437,0.54228681,1958.0,1957.3,0.42726726]
[1772552280729,0.54228681,1958.0,1957.2,6.46823122]
[1772552280937,0.54228681,1958.0,1956.9,0.54574112]
[1772552281130,0.25543,1957.8,1956.6,8.30859736]
[1772552281331,0.54228681,1957.5,1956.6,0.00461269]
[1772552281527,0.54228681,1957.3,1956.1,7.24074112]
[1772552281934,0.54228681,1957.3,1956.1,0.54574112]
[1772552282432,4.27063105,1957.6,1956.1,0.54574112]
[1772552282433,0.54228681,1957.1,1956.1,0.55014959]
[1772552282630,0.54228681,1957.5,1956.3,0.54574112]
[1772552282825,6.39342074,1958.1,1956.1,7.76265202]
[1772552282826,0.54228681,1957.9,1956.7,0.54574112]
[1772552283226,0.54228681,1957.9,1956.9,0.54574112]
[1772552283539,0.54228681,1958.2,1957.4,0.80122112]
[1772552284133,6.7011007,1958.4,1957.6,0.80119112]
[1772552284134,0.0061007,1958.4,1957.6,0.80119112]
[1772552284334,0.0061007,1958.4,1957.7,0.54574112]
[1772552284734,0.0061007,1958.4,1957.6,0.25945746]
[1772552284735,0.54838751,1958.4,1957.6,0.25945746]
[1772552284934,0.54838751,1958.4,1957.6,0.80519858]
[1772552285141,0.54838751,1958.4,1957.7,0.54574112]
[1772552285335,0.54838751,1958.4,1957.6,0.25945746]
[1772552285336,0.54838751,1958.4,1957.6,0.00400746]
[1772552285536,0.2614607,1958.4,1957.1,0.54574112]
[1772552285736,0.54228681,1958.3,1957.1,0.54574112]
[1772552286232,6.695,1958.2,1957.1,0.54574112]
[1772552286433,0.54228681,1958.1,1956.9,0.54574112]
[1772552286637,0.54228681,1958.0,1956.9,0.55088745]
[1772552287436,0.54228681,1958.0,1957.1,0.54574112]
[1772552287643,0.54228681,1958.2,1957.1,0.54574112]
[1772552289243,0.54228681,1958.2,1957.0,0.25553]
[1772552289438,0.54228681,1958.2,1957.0,0.80127112]
[1772552289641,6.7011007,1958.4,1956.9,0.00514633]
[1772552289642,0.54228681,1958.0,1956.9,0.00514633]
[1772552289941,0.54228681,1958.0,1956.9,0.55088745]
[1772552290639,0.54228681,1958.0,1956.9,0.00514633]
[1772552290845,0.54228681,1957.8,1956.9,0.00514633]
[1772552291244,6.95044,1957.7,1956.9,0.00514633]
[1772552291544,0.54228681,1957.7,1956.7,0.54574112]
[1772552291745,0.54228681,1957.7,1956.9,0.54574112]
[1772552292240,7.23728681,1958.1,1956.9,0.54574112]
[1772552292446,0.54228681,1958.0,1956.9,0.55151679]
[1772552293539,0.54228681,1957.8,1956.9,0.00577567]
[1772552293742,0.54228681,1957.4,1956.3,0.54574112]
[1772552293943,0.54228681,1957.2,1956.1,7.24074112]
[1772552294145,0.54228681,1957.2,1955.9,0.54574112]
[1772552294341,0.54228681,1957.0,1955.8,0.25568]
[1772552294541,0.54228681,1957.0,1955.8,0.80142112]
[1772552294742,0.54648748,1957.0,1955.8,0.80769084]
[1772552295039,0.54648748,1957.0,1955.9,0.54574112]
[1772552295240,0.54648748,1957.0,1956.1,0.54574112]
[1772552295439,0.00420067,1957.0,1956.3,0.54574112]
[1772552295741,7.23728681,1957.6,1956.7,0.54574112]
[1772552296143,4.27063105,1958.2,1956.9,0.54574112]
[1772552296144,0.54228681,1957.9,1956.9,0.54574112]
[1772552296437,0.54228681,1957.9,1957.1,0.54574112]
[1772552296745,0.54807841,1957.9,1957.1,0.54574112]
[1772552297241,0.0057916,1957.9,1957.3,0.54574112]
[1772552297448,7.23728681,1958.5,1957.5,0.54574112]
[1772552297643,0.54228681,1958.5,1957.5,0.54574112]
[1772552297843,6.695,1958.7,1957.7,0.5932854]
[1772552298044,0.9574302,1958.8,1957.9,0.5932854]
[1772552298348,0.00474146,1958.8,1958.1,0.5932854]
[1772552298545,0.55067323,1958.8,1957.7,0.5932854]
[1772552299747,0.00474146,1958.8,1958.1,0.58407223]
[1772552300144,0.54975117,1958.8,1957.9,6.695]
[1772552300343,0.54975117,1958.8,1957.8,0.58407223]
[1772552300542,0.54975117,1958.8,1957.4,0.25547]
[1772552300543,0.54500971,1958.7,1957.5,0.58407223]
[1772552300944,0.00474146,1958.8,1957.9,0.58407223]
[1772552301947,0.54500971,1959.3,1958.1,0.58407223]
[1772552302148,0.54500971,1959.3,1958.3,0.58407223]
[1772552302348,0.54500971,1959.3,1958.4,0.58407223]
[1772552302951,0.55132988,1959.3,1958.4,0.58407223]
[1772552303548,0.55132988,1959.3,1957.9,14.04151355]
[1772552303549,0.55132988,1959.3,1957.9,0.58407223]
[1772552303843,0.55132988,1959.3,1958.1,0.58407223]
[1772552304051,0.00632017,1959.3,1958.5,0.58407223]
[1772552304245,0.00632017,1959.3,1958.6,0.58407223]
[1772552304451,0.00632017,1959.3,1958.1,7.75824355]
[1772552304452,0.55132988,1959.3,1958.3,0.58407223]
[1772552304651,0.55132988,1959.3,1958.4,0.58407223]
[1772552304848,0.00632017,1959.3,1958.4,0.58407223]
[1772552305450,0.55132988,1959.3,1958.3,0.25536]
[1772552305650,0.55132988,1959.3,1958.3,0.58407223]
[1772552305845,0.54500971,1959.2,1958.3,0.58407223]
[1772552306050,0.54500971,1959.2,1957.9,6.2833]
[1772552306051,0.00632017,1959.3,1958.5,0.58407223]
[1772552306246,0.55132988,1959.3,1958.5,0.58407223]
[1772552307055,6.693,1959.6,1958.2,6.693]
[1772552307056,0.54500971,1959.6,1958.7,0.58407223]
[1772552307461,0.54500971,1959.6,1958.3,0.58407223]
[1772552308056,0.54930665,1959.6,1958.3,0.58772169]
[1772552308252,0.54930665,1959.6,1958.3,7.27972169]
[1772552308455,0.54930665,1959.6,1958.4,0.58407223]
[1772552309559,0.00429694,1959.6,1958.8,0.58407223]
[1772552309960,0.54930665,1959.6,1958.8,0.58407223]
[1772552310154,0.00429694,1959.6,1958.8,0.58407223]
[1772552310465,0.54930665,1959.6,1958.8,0.58407223]
[1772552310961,0.00429694,1959.6,1958.8,0.58407223]
[1772552311661,0.54930665,1959.6,1958.5,0.58407223]
[1772552311860,0.54930665,1959.6,1958.6,0.58407223]
[1772552312063,0.54930665,1959.6,1958.8,0.58407223]
[1772552312657,0.54930665,1959.6,1958.3,6.69564946]
[1772552312865,0.54930665,1959.6,1958.4,0.58407223]
[1772552313066,0.54930665,1959.6,1958.6,0.58407223]
[1772552313265,0.54500971,1959.9,1959.0,0.58407223]
[1772552314267,0.54500971,1959.9,1958.9,0.25528]
[1772552314464,0.54869471,1959.9,1958.8,0.58407223]
[1772552314666,0.54500971,1959.7,1958.5,0.83941223]
[1772552314867,0.54500971,1959.6,1958.8,0.58407223]
[1772552315368,6.691,1959.7,1958.8,0.58407223]
[1772552315561,0.54500971,1959.8,1959.0,0.58407223]
[1772552316269,0.54500971,1960.2,1959.2,0.58407223]
[1772552316466,0.54500971,1960.2,1959.4,0.58407223]
[1772552317172,0.54500971,1960.2,1959.1,0.58407223]
[1772552317366,0.54500971,1960.0,1958.9,0.83935223]
[1772552317669,0.54500971,1959.9,1958.9,0.83935223]
[1772552317868,0.54500971,1959.9,1958.6,0.58407223]
[1772552318064,0.54500971,1959.7,1958.6,0.58407223]
[1772552318465,0.54500971,1959.7,1958.5,0.25533]
[1772552318666,0.54500971,1959.7,1958.6,0.58407223]
[1772552319474,0.54500971,1959.5,1958.6,0.58407223]
[1772552320170,0.54500971,1959.7,1958.6,0.58407223]
[1772552320960,0.54500971,1959.6,1958.6,0.58407223]
[1772552323272,0.54500971,1959.6,1958.8,0.58407223]
[1772552323867,0.54500971,1960.1,1959.0,0.58407223]
[1772552324067,0.00661346,1960.2,1959.0,0.58407223]
[1772552324068,0.54500971,1959.9,1959.0,0.58407223]
[1772552324273,0.54500971,1959.9,1958.8,0.58407223]
[1772552325473,0.54500971,1959.9,1959.1,0.58407223]
[1772552326969,0.54500971,1959.9,1958.8,6.86237786]
[1772552327275,0.54500971,1959.9,1958.9,6.27830563]
[1772552327475,0.54500971,1959.9,1959.0,0.58407223]
[1772552327970,0.58448998,1959.7,1958.7,14.03654918]
[1772552328171,0.58448998,1959.7,1958.7,0.58592602]
[1772552328975,7.27348998,1959.6,1958.7,0.84122602]
[1772552329173,0.58448998,1959.5,1958.8,0.58592602]
[1772552329473,0.58448998,1959.5,1958.6,6.27830563]
[1772552331576,0.58448998,1959.5,1958.6,6.86423165]
[1772552331974,0.58448998,1959.5,1958.8,0.58592602]
[1772552332174,6.689,1959.6,1958.8,0.58592602]
[1772552332374,0.58448998,1959.5,1958.8,6.86423165]
[1772552332576,0.58448998,1959.5,1958.9,0.58592602]
[1772552332976,0.58448998,1959.5,1958.8,0.58592602]
[1772552333580,0.58448998,1959.7,1958.9,0.58592602]
[1772552333873,0.58448998,1959.9,1959.1,0.58592602]
[1772552334580,0.58448998,1960.1,1959.3,0.58592602]
[1772552334774,4.26527224,1960.5,1959.2,6.53354563]
[1772552334775,0.58448998,1960.5,1959.7,0.58592602]
[1772552334974,0.58448998,1960.5,1959.6,6.27830563]
[1772552335182,0.58448998,1960.3,1959.3,6.86423165]
[1772552335377,0.58448998,1960.3,1959.3,6.27830563]
[1772552335580,0.58448998,1960.3,1959.3,6.86423165]
[1772552335778,0.58448998,1960.1,1959.3,0.59024044]
[1772552336382,0.58448998,1960.1,1959.3,0.00431442]
[1772552337588,0.58448998,1959.9,1958.9,6.27830563]
[1772552338086,0.58448998,1959.9,1958.8,6.86423165]
[1772552338286,0.58448998,1959.7,1958.8,6.86423165]
[1772552338588,7.27348998,1959.7,1958.9,6.86423165]
[1772552338788,0.58448998,1959.6,1958.9,0.58592602]
[1772552339889,0.58448998,1959.6,1958.8,6.27830563]
[1772552340089,0.58448998,1959.6,1958.7,0.59111848]
[1772552340292,0.58448998,1959.6,1958.8,0.58592602]
[1772552340481,7.27348998,1959.8,1958.9,0.58592602]
[1772552340688,6.689,1959.9,1959.0,0.58592602]
[1772552340884,0.58448998,1959.8,1959.0,6.27830563]
[1772552341094,0.58448998,1959.8,1959.1,0.58592602]
[1772552341793,0.00556752,1960.3,1959.4,0.58592602]
[1772552341794,0.5900575,1960.3,1959.4,0.58592602]
[1772552341994,0.58448998,1960.6,1959.8,0.58592602]
[1772552342189,6.689,1960.7,1959.8,0.58592602]
[1772552342596,0.58448998,1961.0,1960.0,0.58592602]
[1772552342793,7.27348998,1961.1,1960.2,0.58592602]
[1772552342991,0.58448998,1961.0,1960.2,0.58976774]
[1772552343189,0.58448998,1961.0,1960.2,0.00384172]
[1772552343589,0.58448998,1961.0,1960.2,0.58976774]
[1772552343795,6.689,1960.9,1960.2,0.58976774]
[1772552344190,0.00479397,1961.1,1960.2,0.58976774]
[1772552344390,0.58448998,1961.8,1960.7,0.25505]
[1772552344594,0.58448998,1961.8,1961.0,0.58592602]
[1772552345492,0.58867747,1961.8,1961.0,0.58592602]
[1772552345698,0.58867747,1961.8,1960.4,0.58592602]
[1772552346094,0.58867747,1961.8,1960.8,0.58592602]
[1772552346300,0.00418749,1961.8,1960.8,0.58592602]
[1772552346694,0.00418749,1961.8,1961.0,0.58592602]
[1772552346895,6.687,1962.2,1961.1,0.58592602]
[1772552347200,6.687,1962.2,1961.2,0.58592602]
[1772552347398,0.58448998,1962.1,1961.2,0.58592602]
[1772552347896,0.58448998,1962.6,1961.4,0.58592602]
[1772552348101,0.58448998,1962.6,1961.5,0.58592602]
[1772552348998,7.27048998,1962.5,1961.5,0.58592602]
[1772552349800,0.00466916,1962.6,1961.7,0.58592602]
[1772552349993,0.00466916,1962.6,1961.7,0.59073611]
[1772552350194,0.58448998,1963.0,1961.9,0.58592602]
[1772552350595,0.58448998,1963.0,1961.7,0.59073611]
[1772552351200,0.59103419,1963.0,1961.7,0.59073611]
[1772552351598,0.59103419,1963.0,1961.8,0.58592602]
[1772552352198,0.00654421,1963.0,1961.9,0.58592602]
[1772552352505,6.51846,1964.0,1961.9,0.58592602]
[1772552352506,0.58448998,1963.9,1962.5,0.58592602]
[1772552352697,0.58448998,1963.9,1962.7,0.58592602]
[1772552352903,0.58448998,1964.5,1963.1,0.58592602]
[1772552353101,0.58448998,1964.5,1963.3,0.58592602]
[1772552353297,0.58448998,1964.5,1963.4,0.58592602]
[1772552353504,0.58448998,1965.2,1964.0,0.58592602]
[1772552354204,0.58448998,1965.5,1964.3,0.58592602]
[1772552354405,0.00578887,1965.5,1964.5,0.58592602]
[1772552354709,0.58448998,1965.3,1963.8,0.58592602]
[1772552354909,0.58448998,1964.7,1963.5,0.58592602]
[1772552355102,0.58448998,1964.5,1963.5,0.58592602]
[1772552355400,0.58448998,1964.5,1963.2,0.58592602]
[1772552355604,7.26548998,1964.5,1963.4,0.58988349]
[1772552356108,0.58448998,1964.4,1963.4,0.00395747]
[1772552356911,12.94346,1964.5,1962.4,0.58592602]
[1772552356912,0.58448998,1963.6,1962.4,0.58592602]
[1772552357205,0.58448998,1963.5,1962.4,0.58592602]
[1772552357602,0.58448998,1963.5,1961.8,0.58592602]
[1772552357603,0.58448998,1963.3,1961.8,0.58592602]
[1772552357802,0.58448998,1963.1,1961.8,0.00640423]
[1772552358001,0.57497445,1962.9,1962.1,0.58467318]
[1772552358205,0.00389173,1963.3,1962.3,0.58467318]
[1772552359003,6.51729,1964.4,1962.2,0.25485]
[1772552359004,0.57497445,1964.1,1962.7,0.58467318]
[1772552359911,0.58086264,1964.1,1963.1,0.55091124]
[1772552360105,0.57074532,1964.1,1963.3,0.55091124]
[1772552360310,7.24974532,1964.1,1963.3,0.00507182]
[1772552360608,0.56485713,1964.0,1962.7,0.55091124]
[1772552360809,0.56485713,1963.8,1962.3,0.55091124]
[1772552361210,0.56485713,1963.6,1962.1,0.55091124]
[1772552361509,0.56485713,1963.6,1962.1,0.55649196]
[1772552362304,0.00588819,1964.1,1962.6,0.55091124]
[1772552362511,0.00588819,1964.1,1963.2,0.55091124]
[1772552362707,0.00588819,1964.1,1963.4,0.55091124]
[1772552362908,0.56485713,1964.5,1963.4,0.55091124]
[1772552364008,0.57056427,1964.5,1963.6,0.55091124]
[1772552364205,0.57056427,1964.5,1963.6,0.00485653]
[1772552364408,0.56485713,1964.3,1963.0,0.55091124]
[1772552364609,0.56485713,1964.1,1962.7,0.55091124]
[1772552365203,6.677,1964.1,1962.9,0.55091124]
[1772552365408,0.56485713,1964.2,1963.1,0.55091124]
[1772552365609,0.56485713,1965.7,1964.3,0.55091124]
[1772552366208,0.56485713,1965.5,1964.3,0.55091124]
[1772552366417,0.56485713,1965.3,1964.0,0.55091124]
[1772552366616,0.5711117,1965.3,1964.0,0.55553424]
[1772552367306,0.5711117,1965.3,1964.2,0.55091124]
[1772552367509,0.00625457,1965.3,1964.2,0.55091124]
[1772552367706,0.00625457,1965.3,1964.4,0.55091124]
[1772552369110,0.00625457,1965.3,1964.6,0.55091124]
[1772552369316,0.56485713,1966.0,1964.8,0.55091124]
[1772552370313,0.57019805,1966.0,1964.8,0.55091124]
[1772552370508,0.56485713,1965.9,1964.8,0.55091124]
[1772552372510,0.25441,1965.6,1964.2,0.55091124]
[1772552372714,0.56485713,1965.5,1964.2,0.55091124]
[1772552373110,0.56485713,1965.3,1964.2,0.55091124]
[1772552373311,0.56485713,1965.1,1964.2,0.55091124]
[1772552373511,0.56485713,1965.0,1964.0,0.55553424]
[1772552373712,0.56485713,1964.9,1964.0,0.55553424]
[1772552374014,6.673,1965.1,1964.0,0.55553424]
[1772552374214,0.56485713,1965.1,1964.0,0.55553424]
[1772552374415,0.56485713,1965.1,1964.1,0.55091124]
[1772552375313,0.56485713,1965.4,1964.3,0.55091124]
[1772552375512,0.25441,1965.7,1964.6,0.25454]
[1772552375513,0.56485713,1965.7,1964.6,0.25454]
[1772552375817,0.56485713,1965.7,1964.2,0.55091124]
[1772552376021,0.56485713,1965.7,1964.8,0.55091124]
[1772552376708,0.56485713,1965.7,1964.5,0.55091124]
[1772552376914,6.67734092,1966.0,1964.5,0.55091124]
[1772552376915,0.56485713,1965.5,1964.5,0.55091124]
[1772552377422,7.23685713,1965.4,1964.5,0.55091124]
[1772552377622,0.56485713,1965.4,1964.5,0.55091124]
[1772552378318,0.56485713,1965.4,1964.0,0.004623]
[1772552378319,0.57019805,1966.0,1964.7,0.55091124]
[1772552378619,0.57019805,1966.0,1964.9,0.55091124]
[1772552379213,7.23685713,1965.9,1964.9,0.55091124]
[1772552379412,0.56485713,1965.9,1964.9,0.55091124]
[1772552379613,7.23585713,1965.9,1964.9,0.55091124]
[1772552379918,0.56485713,1965.8,1964.9,0.55091124]
[1772552380422,0.56485713,1965.7,1964.9,0.55091124]
[1772552380620,0.57019805,1966.0,1964.9,0.55091124]
[1772552381115,0.56485713,1965.8,1964.3,0.55091124]
[1772552381417,0.00534092,1966.0,1964.3,0.55091124]
[1772552381418,0.56485713,1965.4,1964.3,0.55091124]
[1772552381615,7.23585713,1965.3,1964.3,0.55091124]
[1772552381815,0.56485713,1965.3,1964.3,0.55091124]
[1772552382419,0.56485713,1965.3,1964.0,0.55553424]
[1772552382618,0.56485713,1965.5,1964.4,0.55091124]
[1772552383222,0.56485713,1965.5,1964.1,0.55091124]
[1772552383419,0.56485713,1965.3,1964.1,0.55091124]
[1772552383620,0.56485713,1965.1,1964.1,0.55091124]
[1772552383922,0.56485713,1965.0,1964.1,0.55091124]
[1772552384515,0.56485713,1965.4,1964.1,0.55091124]
[1772552384722,0.56485713,1965.2,1964.1,0.55091124]
[1772552384920,0.56485713,1965.1,1964.1,0.55091124]
[1772552385222,7.23585713,1965.5,1964.3,0.55091124]
[1772552385423,0.56485713,1965.4,1964.3,0.55091124]
[1772552386815,0.56485713,1965.4,1964.5,0.55091124]
[1772552387220,0.56485713,1965.4,1964.1,0.55091124]
[1772552387423,7.23585713,1965.3,1964.1,0.55091124]
[1772552387625,0.56485713,1965.9,1964.5,0.55091124]
[1772552387923,0.56485713,1965.9,1964.7,0.55091124]
[1772552388123,0.58470242,1966.7,1965.3,0.55792559]
[1772552388617,0.58470242,1966.7,1965.5,0.55792559]
[1772552389017,0.58470242,1966.5,1965.3,0.55792559]
[1772552389325,7.25835155,1966.7,1965.5,0.56198151]
[1772552389524,0.58835155,1966.7,1965.5,0.56198151]
[1772552390121,0.00364913,1966.7,1965.7,0.55792559]
[1772552390818,0.58470242,1967.3,1966.1,0.55792559]
[1772552391021,0.58470242,1967.1,1966.1,0.55792559]
[1772552391220,0.58470242,1967.1,1965.6,0.55792559]
[1772552391616,0.58470242,1966.9,1965.6,0.55792559]
[1772552391821,0.58993191,1966.9,1965.6,0.55792559]
[1772552392225,7.25893191,1966.9,1965.6,0.55792559]
[1772552392424,0.58470242,1966.8,1965.6,0.55792559]
[1772552393119,7.25370242,1966.8,1965.6,0.55792559]
[1772552393528,0.58470242,1966.7,1965.6,0.55792559]
[1772552393721,0.00522949,1966.9,1965.6,0.55792559]
[1772552393919,6.67422949,1966.9,1965.7,0.2544]
[1772552394226,0.58470242,1968.2,1967.0,0.55578604]
[1772552394526,0.58470242,1968.0,1966.6,0.55792559]
[1772552394724,0.58470242,1967.8,1966.6,0.55792559]
[1772552395125,0.58470242,1967.6,1966.6,0.56300633]
[1772552396027,7.25270242,1967.6,1966.6,0.56300633]
[1772552396227,0.58470242,1967.6,1966.6,0.56300633]
[1772552396426,0.58470242,1967.6,1966.6,0.00508074]
[1772552396823,0.58470242,1967.5,1966.6,0.56280232]